bitfinex-derivatives/quotes_SOLF0:USTF0_20260126
["timestamp","ask_amount","ask_price","bid_price","bid_amount"]
[1769448625220,7.3001,123.41,123.36,71.02584636]
[1769448625419,7.3001,123.41,123.37,71.02584636]
[1769448627019,32.68927622,123.38,123.31,68.61973834]
[1769448627223,113.5892,123.37,123.31,68.61973834]
[1769448627428,146.27147622,123.38,123.31,68.61973834]
[1769448627632,32.68927622,123.38,123.31,68.61973834]
[1769448629022,7.3027,123.36,123.31,68.61973834]
[1769448629623,7.3034,123.35,123.31,68.61973834]
[1769448630631,7.3034,123.35,123.29,71.02584636]
[1769448631028,7.3034,123.35,123.29,68.61973834]
[1769448631227,37.5856682,123.37,123.29,71.02584636]
[1769448631432,30.2831682,123.37,123.3,71.02584636]
[1769448631632,32.69487371,123.37,123.3,71.03144385]
[1769448632730,32.69487371,123.37,123.3,68.61973834]
[1769448632932,7.3027,123.36,123.3,68.61973834]
[1769448633326,32.69487371,123.36,123.3,68.61973834]
[1769448633532,7.3033,123.35,123.3,68.61973834]
[1769448634733,7.3033,123.35,123.3,71.03144385]
[1769448635635,7.3033,123.35,123.3,68.61973834]
[1769448638631,146.29387371,123.36,123.3,56.31643834]
[1769448638832,55.2710682,123.35,123.3,43.63183834]
[1769448639536,7.3044,123.34,123.3,43.63183834]
[1769448640644,7.3057,123.31,123.26,2.41170551]
[1769448640942,7.3057,123.31,123.26,71.03144385]
[1769448641146,7.3057,123.31,123.25,71.03144385]
[1769448641147,55.2710682,123.31,123.25,71.03144385]
[1769448641345,2.41170551,123.32,123.25,71.03144385]
[1769448641544,171.31227371,123.33,123.25,71.03144385]
[1769448642045,55.2710682,123.32,123.25,71.03144385]
[1769448642346,7.3056,123.31,123.25,71.03144385]
[1769448643649,57.68277371,123.29,123.23,68.61973834]
[1769448644044,7.3079,123.27,123.23,68.61973834]
[1769448644538,55.2710682,123.29,123.23,68.61973834]
[1769448644942,57.68277371,123.29,123.23,68.61973834]
[1769448645343,7.3074,123.28,123.23,68.61973834]
[1769448646345,7.3066,123.3,123.24,71.03144385]
[1769448647448,55.2710682,123.32,123.25,71.03144385]
[1769448647648,57.68277371,123.31,123.25,68.61973834]
[1769448648650,57.68277371,123.31,123.22,68.55409653]
[1769448648849,7.3081,123.27,123.22,68.55409653]
[1769448649946,171.31847688,123.29,123.22,68.55409653]
[1769448650148,2.41170551,123.26,123.12,437.5692]
[1769448650353,67.52929488,123.27,123.19,2.41170551]
[1769448651049,67.52929488,123.26,123.19,2.41170551]
[1769448651549,65.11758937,123.26,123.19,2.41170551]
[1769448652047,65.11758937,123.26,123.19,70.96580204]
[1769448652948,72.42628937,123.26,123.19,70.96580204]
[1769448653251,72.42628937,123.26,123.2,70.96580204]
[1769448653747,72.42628937,123.26,123.2,68.55409653]
[1769448654146,7.3094,123.25,123.2,68.55409653]
[1769448654547,9.72110551,123.25,123.2,68.55409653]
[1769448654747,67.52929488,123.24,123.16,70.96580204]
[1769448655051,65.11758937,123.24,123.18,70.96580204]
[1769448655252,72.42758937,123.24,123.18,68.55409653]
[1769448655551,67.52929488,123.24,123.18,68.55409653]
[1769448657149,65.11758937,123.24,123.18,70.96580204]
[1769448657351,65.11758937,123.26,123.18,70.96580204]
[1769448657551,65.11758937,123.26,123.2,70.96580204]
[1769448658854,67.52929488,123.28,123.2,70.96580204]
[1769448659649,65.11758937,123.28,123.2,68.55409653]
[1769448660351,72.42508937,123.28,123.2,68.55409653]
[1769448661654,72.42558937,123.27,123.2,68.55409653]
[1769448663253,113.664,123.29,123.2,68.55409653]
[1769448663254,65.11758937,123.28,123.2,68.55409653]
[1769448663651,65.11758937,123.32,123.22,68.55409653]
[1769448663856,65.11758937,123.34,123.23,74.09991461]
[1769448664160,65.11758937,123.34,123.25,68.55409653]
[1769448664361,7.3045,123.33,123.25,68.55409653]
[1769448667360,7.3045,123.33,123.25,75.86309653]
[1769448667857,65.11758937,123.34,123.27,68.55409653]
[1769448668356,7.3045,123.33,123.27,68.55409653]
[1769448668557,72.42208937,123.33,123.27,68.55409653]
[1769448670163,72.42128937,123.35,123.27,68.55409653]
[1769448670364,65.11758937,123.35,123.27,68.55409653]
[1769448671366,65.11758937,123.34,123.27,68.55409653]
[1769448671567,178.73578937,123.34,123.27,68.55409653]
[1769448671868,113.6099,123.35,123.16,177.18465113]
[1769448671869,65.11758937,123.28,123.2,68.55409653]
[1769448672563,7.308,123.27,123.2,75.86609653]
[1769448673059,10.14997934,123.26,123.2,65.7161172]
[1769448673261,10.14997934,123.25,123.2,47.44615439]
[1769448673468,65.11758937,123.28,123.2,47.44615439]
[1769448673667,65.11758937,123.28,123.2,40.13415439]
[1769448674868,7.3086,123.26,123.2,40.13415439]
[1769448675068,65.11758937,123.28,123.2,40.13415439]
[1769448675969,7.308,123.27,123.2,40.13415439]
[1769448676168,178.77148937,123.3,123.2,47.44615439]
[1769448676369,65.11758937,123.3,123.2,47.44615439]
[1769448676968,7.3072,123.29,123.2,47.44615439]
[1769448677765,65.11758937,123.29,123.2,47.44615439]
[1769448679973,7.3076,123.28,123.2,47.44615439]
[1769448680367,68.3748587,123.28,123.2,40.13415439]
[1769448680574,68.3748587,123.27,123.2,40.13415439]
[1769448681572,7.3097,123.24,123.2,40.13415439]
[1769448683274,7.3097,123.24,123.2,34.04273069]
[1769448685367,10.04291346,123.23,123.2,34.04273069]
[1769448685568,70.79116586,123.27,123.2,36.45903785]
[1769448685771,2.41630716,123.28,123.2,36.45903785]
[1769448685972,2.41630716,123.28,123.21,71.64199249]
[1769448686167,7.308,123.27,123.21,71.64199249]
[1769448688168,7.308,123.27,123.21,69.99805575]
[1769448690480,312.2520159,123.31,123.25,69.22568533]
[1769448690481,2.41630716,123.31,123.25,69.22568533]
[1769448690681,68.3748587,123.35,123.27,69.22568533]
[1769448690977,2.41630716,123.34,123.27,69.22568533]
[1769448691182,68.3748587,123.35,123.28,71.64199249]
[1769448691584,70.79116586,123.35,123.28,69.22568533]
[1769448691884,7.3038,123.34,123.28,69.22568533]
[1769448692075,2.41630716,123.29,123.23,69.22568533]
[1769448692279,2.41630716,123.29,123.22,2.41630716]
[1769448692280,68.3748587,123.22,123.07,20.20764408]
[1769448692472,182.1664587,123.15,123.01,138.30545233]
[1769448692673,2.41630716,123.17,123.06,2.41630716]
[1769448692877,7.3131,123.19,123.1,9.73410716]
[1769448693081,113.746,123.2,123.08,437.7496]
[1769448693279,184.53716586,123.2,123.1,2.41630716]
[1769448693487,2.41630716,123.18,123.1,2.41630716]
[1769448693782,113.7631,123.18,123.07,323.9]
[1769448694375,7.3141,123.17,123.09,69.22568533]
[1769448695180,68.3748587,123.19,123.1,76.54338533]
[1769448695387,182.1068587,123.22,123.1,69.22568533]
[1769448695984,68.3748587,123.21,123.1,69.22568533]
[1769448696581,7.3103,123.24,123.14,76.54088533]
[1769448696888,7.3103,123.24,123.15,69.22568533]
[1769448697482,10.1535602,123.23,123.16,76.54008533]
[1769448697682,10.1535602,123.22,123.16,76.54008533]
[1769448697883,10.1535602,123.21,123.16,76.54008533]
[1769448698087,10.1535602,123.2,123.16,69.22568533]
[1769448698288,113.6634,123.29,123.19,69.22568533]
[1769448698890,7.3071,123.29,123.19,76.53808533]
[1769448699587,75.6819587,123.29,123.19,76.53808533]
[1769448700393,181.9847587,123.35,123.25,69.22568533]
[1769448701291,75.6784587,123.35,123.25,69.22568533]
[1769448701791,68.3748587,123.35,123.26,182.91038533]
[1769448701993,7.3023,123.37,123.28,69.22568533]
[1769448702396,7.3023,123.37,123.28,76.53278533]
[1769448703083,75.6771587,123.37,123.28,76.53278533]
[1769448703490,75.6771587,123.37,123.28,69.22568533]
[1769448705697,68.3748587,123.34,123.24,76.53508533]
[1769448706792,68.3748587,123.34,123.25,76.53458533]
[1769448710401,9.83871035,123.33,123.25,76.53458533]
[1769448710596,9.83871035,123.32,123.25,76.53458533]
[1769448710900,9.83871035,123.31,123.25,76.53458533]
[1769448711099,9.83871035,123.3,123.25,76.53458533]
[1769448711396,75.6788587,123.34,123.25,76.53458533]
[1769448714604,68.3748587,123.34,123.26,73.3870295]
[1769448715200,68.3748587,123.34,123.27,75.14009814]
[1769448715504,68.3748587,123.34,123.27,67.83249814]
[1769448715904,68.3748587,123.34,123.27,63.77417445]
[1769448716298,68.3748587,123.34,123.27,71.08207445]
[1769448716797,63.75916098,123.31,123.23,7.3099]
[1769448717401,63.75916098,123.31,123.24,7.3096]
[1769448718802,63.75916098,123.31,123.24,75.14209814]
[1769448719007,63.75916098,123.31,123.25,75.14139814]
[1769448719208,63.75916098,123.34,123.25,67.83249814]
[1769448719896,71.06346098,123.34,123.25,75.14109814]
[1769448720098,71.06346098,123.34,123.25,67.83249814]
[1769448720305,63.75916098,123.34,123.25,67.83249814]
[1769448720605,71.06316098,123.34,123.27,7.3079]
[1769448721607,7.3046,123.33,123.25,67.83249814]
[1769448721906,63.75916098,123.34,123.25,67.83249814]
[1769448723009,63.75916098,123.34,123.27,7.3079]
[1769448723202,2.57349744,123.33,123.27,7.3079]
[1769448723401,2.57349744,123.32,123.27,7.3079]
[1769448723710,2.57300785,123.31,123.27,7.3079]
[1769448723911,63.75916098,123.34,123.27,7.3079]
[1769448724607,63.75916098,123.34,123.28,7.3072]
[1769448724802,71.06176098,123.37,123.28,67.83249814]
[1769448725008,63.75916098,123.37,123.28,67.83249814]
[1769448725908,7.3027,123.36,123.29,7.3067]
[1769448727208,7.3027,123.36,123.29,75.13919814]
[1769448727408,63.75916098,123.37,123.29,67.83249814]
[1769448727717,7.3018,123.38,123.31,75.13799814]
[1769448727910,63.75916098,123.4,123.31,67.83249814]
[1769448728807,63.75916098,123.43,123.33,67.83249814]
[1769448730012,7.2996,123.41,123.34,75.13629814]
[1769448732116,63.75916098,123.43,123.34,75.13629814]
[1769448733318,63.75916098,123.41,123.34,67.83249814]
[1769448733921,63.75916098,123.41,123.34,49.5809948]
[1769448734321,63.75916098,123.42,123.34,56.8845948]
[1769448735313,63.75916098,123.42,123.35,7.3031]
[1769448736021,2.46994452,123.41,123.35,75.13559814]
[1769448736321,2.46994452,123.4,123.35,75.13559814]
[1769448736520,69.31369234,123.44,123.35,75.13559814]
[1769448737222,63.75916098,123.43,123.35,67.83249814]
[1769448737719,7.2997,123.41,123.35,67.83249814]
[1769448738511,71.05886098,123.41,123.34,7.3036]
[1769448739126,113.5705,123.39,123.24,70.70414039]
[1769448739318,5.55453136,123.35,123.24,70.70414039]
[1769448739519,113.6253,123.33,123.24,70.70414039]
[1769448739720,5.55453136,123.33,123.24,70.70414039]
[1769448739926,119.18603136,123.33,123.24,70.70414039]
[1769448740421,7.3061,123.31,123.24,70.70414039]
[1769448740727,113.6343,123.32,123.24,70.70414039]
[1769448740928,113.6343,123.32,123.24,62.58591055]
[1769448741127,121.75252984,123.32,123.24,62.58591055]
[1769448741329,7.3065,123.3,123.24,62.58591055]
[1769448743924,7.3065,123.3,123.24,56.49789442]
[1769448745832,7.3054,123.32,123.24,63.80749442]
[1769448747033,343.85933136,123.37,123.27,70.59925431]
[1769448747034,135.10174597,123.37,123.27,70.59925431]
[1769448747935,21.51164597,123.34,123.27,70.59925431]
[1769448748432,2.02888719,123.33,123.27,70.59925431]
[1769448748632,2.02888719,123.32,123.27,70.59925431]
[1769448748830,2.02888719,123.31,123.27,70.59925431]
[1769448749022,21.51164597,123.34,123.27,66.54110121]
[1769448749224,2.0290947,123.33,123.27,66.54110121]
[1769448749424,21.51164597,123.34,123.27,66.54110121]
[1769448749833,7.3053,123.32,123.27,66.54110121]
[1769448750036,153.71928626,123.33,123.22,323.72]
[1769448750528,40.09198626,123.32,123.22,323.72]
[1769448751034,7.3058,123.31,123.22,331.0307]
[1769448751427,40.09198626,123.31,123.22,331.0307]
[1769448751828,7.3066,123.3,123.19,113.7471]
[1769448752024,7.3066,123.3,123.2,70.59925431]
[1769448752424,7.3069,123.29,123.22,70.59925431]
[1769448752629,113.6543,123.3,123.22,70.59925431]
[1769448752937,153.75338626,123.29,123.22,70.59925431]
[1769448753532,7.3071,123.29,123.22,70.59925431]
[1769448753737,40.09198626,123.32,123.22,70.59925431]
[1769448753929,40.09198626,123.32,123.22,64.51047011]
[1769448754638,113.6156,123.34,123.22,119.2687728]
[1769448754937,113.6156,123.34,123.23,62.0]
[1769448755236,159.79637046,123.34,123.23,62.0]
[1769448756039,7.3051,123.32,123.25,70.59925431]
[1769448756335,46.18077046,123.31,123.23,70.59925431]
[1769448758040,7.3068,123.29,123.23,70.59925431]
[1769448759343,53.48757046,123.29,123.19,74.88092954]
[1769448759637,113.6156,123.34,123.14,70.70414039]
[1769448759638,113.7325,123.22,123.14,70.70414039]
[1769448759838,113.736,123.21,123.14,70.70414039]
[1769448760041,7.3119,123.21,123.14,70.70414039]
[1769448760350,121.047,123.21,123.14,70.70414039]
[1769448760846,7.3119,123.21,123.11,70.70414039]
[1769448761042,2.03114326,123.2,123.11,78.02114039]
[1769448761248,2.03114326,123.19,123.11,78.02114039]
[1769448761441,2.03114326,123.18,123.11,78.02114039]
[1769448761637,7.3119,123.21,123.11,78.02114039]
[1769448761842,7.3119,123.21,123.11,83.56421319]
[1769448762142,7.3119,123.21,123.11,78.02114039]
[1769448762341,7.3119,123.21,123.12,70.70414039]
[1769448763140,113.721,123.23,123.12,70.70414039]
[1769448763141,121.0315,123.23,123.12,70.70414039]
[1769448763343,121.0315,123.23,123.12,78.02064039]
[1769448763548,7.3105,123.23,123.12,78.02064039]
[1769448764445,7.3094,123.25,123.15,70.70414039]
[1769448764647,113.6827,123.27,123.16,70.70414039]
[1769448765555,113.6892,123.26,123.16,70.70414039]
[1769448766248,7.3094,123.25,123.16,78.01824039]
[1769448766649,113.6791,123.28,123.17,70.70414039]
[1769448767352,113.6669,123.29,123.17,70.70414039]
[1769448767548,113.6533,123.3,123.22,70.70414039]
[1769448767848,113.6533,123.3,123.22,66.64496671]
[1769448768046,7.3071,123.29,123.22,66.64496671]
[1769448770858,11.36477368,123.31,123.22,66.64496671]
[1769448772960,11.36477368,123.31,123.22,73.95566671]
[1769448773565,2.02959167,123.3,123.22,73.95566671]
[1769448773759,2.02959167,123.29,123.22,73.95566671]
[1769448773959,2.02959167,123.28,123.22,73.95566671]
[1769448774156,2.02959167,123.27,123.22,73.95566671]
[1769448774360,11.36477368,123.31,123.22,73.95566671]
[1769448777863,7.3056,123.31,123.24,69.47617356]
[1769448778060,7.3056,123.31,123.24,63.38771265]
[1769448778259,7.3049,123.33,123.24,63.38771265]
[1769448778661,5.5430728,123.35,123.24,113.7071]
[1769448778864,7.304,123.34,123.24,113.7071]
[1769448779566,12.11231382,123.35,123.26,7.3084]
[1769448779966,7.303,123.36,123.27,69.47617356]
[1769448780358,12.11231382,123.37,123.29,69.47617356]
[1769448780671,12.11231382,123.35,123.26,69.47617356]
[1769448780870,125.73731382,123.33,123.24,69.47617356]
[1769448781171,17.65538662,123.32,123.24,69.47617356]
[1769448781365,7.3064,123.3,123.24,69.47617356]
[1769448782565,17.65538662,123.32,123.24,69.47617356]
[1769448782757,17.65538662,123.32,123.24,65.41714489]
[1769448782758,243.46784249,123.31,123.24,65.41714489]
[1769448782958,21.71441529,123.29,123.18,323.86]
[1769448783169,7.3081,123.27,123.19,7.3122]
[1769448783767,7.3087,123.26,123.19,7.3122]
[1769448784269,7.3087,123.26,123.2,7.3121]
[1769448784670,7.3087,123.26,123.2,76.78827356]
[1769448786265,9.33920634,123.25,123.2,69.47617356]
[1769448786566,2.03010634,123.24,123.18,69.47617356]
[1769448786771,2.03010634,123.23,123.18,69.47617356]
[1769448786960,2.03010634,123.22,123.18,69.47617356]
[1769448787167,2.03010634,123.21,123.18,69.47617356]
[1769448787467,7.3103,123.23,123.18,69.47617356]
[1769448787665,16.17134249,123.25,123.18,69.47617356]
[1769448787666,23.48104249,123.25,123.18,69.47617356]
[1769448787867,16.17134249,123.25,123.18,69.47617356]
[1769448788073,16.17134249,123.25,123.18,63.3847783]
[1769448788372,7.3103,123.23,123.18,63.3847783]
[1769448789166,16.17134249,123.25,123.18,63.3847783]
[1769448789773,16.17134249,123.25,123.18,55.26278546]
[1769448790173,30.38473059,123.24,123.15,7.3146]
[1769448790374,5.5430728,123.23,123.15,7.3146]
[1769448790868,7.311,123.22,123.15,7.3146]
[1769448791773,7.311,123.22,123.15,76.79077356]
[1769448792273,119.2615728,123.23,123.15,69.47617356]
[1769448793965,7.3114,123.22,123.15,69.47617356]
[1769448794361,30.38473059,123.22,123.15,69.47617356]
[1769448794561,30.38473059,123.22,123.13,323.84]
[1769448794562,30.38473059,123.19,123.12,69.47617356]
[1769448795169,7.3133,123.18,123.12,69.47617356]
[1769448795664,149.67440339,123.2,123.12,61.35036304]
[1769448795868,7.3139,123.17,123.12,61.35036304]
[1769448796174,38.51054111,123.19,123.12,61.35036304]
[1769448796370,157.79131391,123.21,123.12,61.35036304]
[1769448796576,38.51054111,123.19,123.12,61.35036304]
[1769448797571,38.51054111,123.17,123.08,331.2386]
[1769448797874,157.83741391,123.16,123.09,65.41268896]
[1769448798076,177.10862963,123.14,123.04,7.3213]
[1769448798377,177.12992963,123.12,123.0,119.4645728]
[1769448798774,63.5036578,123.11,123.02,7.3227]
[1769448798972,63.5036578,123.1,122.99,235.0]
[1769448799173,63.5036578,123.1,122.99,348.9335]
[1769448799374,2.03288201,123.09,123.0,113.9285]
[1769448799680,2.03288201,123.08,123.0,113.9285]
[1769448799876,2.03288201,123.07,123.0,113.9285]
[1769448800077,2.03288201,123.06,123.01,70.03231694]
[1769448800277,63.5036578,123.1,123.01,70.03231694]
[1769448800677,7.3189,123.09,123.01,77.35531694]
[1769448801981,63.5036578,123.1,123.03,70.03231694]
[1769448802175,63.5036578,123.1,123.03,61.90066427]
[1769448802783,67.46621834,123.13,123.03,61.90066427]
[1769448803987,67.46621834,123.11,123.03,61.90066427]
[1769448804378,7.3188,123.09,123.03,61.90066427]
[1769448804582,74.78501834,123.09,123.0,70.03231694]
[1769448804777,73.00929114,123.12,123.01,183.94991694]
[1769448805077,67.46621834,123.12,123.02,70.03231694]
[1769448805282,67.46621834,123.12,123.03,70.03231694]
[1769448805473,67.46621834,123.12,123.04,70.03231694]
[1769448805676,67.46621834,123.15,123.04,70.03231694]
[1769448805884,67.46621834,123.15,123.06,77.35261694]
[1769448806088,181.25991834,123.15,123.06,70.03231694]
[1769448806381,67.46621834,123.13,123.06,70.03231694]
[1769448807773,67.46621834,123.13,123.03,70.03231694]
[1769448807977,67.46621834,123.13,123.02,113.9103]
[1769448807978,7.3169,123.12,123.04,77.35341694]
[1769448808984,67.46621834,123.13,123.05,70.03231694]
[1769448809581,74.78261834,123.13,123.05,70.03231694]
[1769448809888,7.3164,123.13,123.05,70.03231694]
[1769448810583,74.78171834,123.15,123.06,70.03231694]
[1769448810886,181.22201834,123.19,123.09,70.03231694]
[1769448811190,67.46621834,123.17,123.09,70.03231694]
[1769448811386,67.46621834,123.15,123.06,394.25231694]
[1769448811587,67.46621834,123.15,123.07,70.03231694]
[1769448811782,74.78171834,123.15,123.07,70.03231694]
[1769448811982,67.46621834,123.15,123.07,70.03231694]
[1769448812385,2.03211715,123.14,123.07,70.03231694]
[1769448812585,2.03211715,123.13,123.07,70.03231694]
[1769448812889,2.03211715,123.12,123.07,77.35201694]
[1769448813091,2.03211715,123.11,123.07,77.35201694]
[1769448813292,2.03228454,123.1,123.07,70.03231694]
[1769448813594,67.46621834,123.15,123.07,70.03231694]
[1769448813781,7.3164,123.13,123.07,70.03231694]
[1769448813977,67.46621834,123.14,123.04,70.03231694]
[1769448814683,67.46621834,123.17,123.07,70.03231694]
[1769448815684,67.46621834,123.17,123.09,70.03231694]
[1769448815878,67.46621834,123.16,123.06,70.03231694]
[1769448816892,7.3157,123.14,123.07,7.3193]
[1769448817082,7.3157,123.14,123.07,77.35161694]
[1769448817791,74.78121834,123.16,123.08,7.3192]
[1769448817991,67.46621834,123.16,123.08,7.3192]
[1769448818191,67.46621834,123.16,123.08,3.25482446]
[1769448818595,67.46621834,123.16,123.08,73.2871414]
[1769448818988,67.46621834,123.15,123.06,77.35221694]
[1769448820092,7.3164,123.13,123.07,77.35201694]
[1769448820297,7.3164,123.13,123.07,70.03231694]
[1769448821595,67.46621834,123.12,123.04,77.35331694]
[1769448821891,181.28761834,123.12,123.04,70.03231694]
[1769448822286,67.46621834,123.11,123.04,61.90071812]
[1769448822593,113.8317,123.11,123.02,324.24]
[1769448822783,113.8317,123.11,122.99,62.0]
[1769448822784,67.46621834,123.1,122.99,62.0]
[1769448822990,67.46621834,123.09,122.98,438.1853]
[1769448823189,7.3198,123.07,123.0,7.324]
[1769448823386,7.3198,123.07,122.98,324.24]
[1769448823387,181.31461834,123.09,122.98,324.24]
[1769448823793,7.3196,123.08,123.0,7.3237]
[1769448824391,67.46621834,123.11,123.01,70.03231694]
[1769448824594,181.30081834,123.11,123.01,70.03231694]
[1769448824896,181.30601834,123.1,123.01,70.03231694]
[1769448825386,2.03297772,123.09,123.01,70.03231694]
[1769448825587,2.03297772,123.08,123.01,70.03231694]
[1769448825785,2.03297772,123.07,123.01,70.03231694]
[1769448825983,2.03297772,123.06,123.01,70.03231694]
[1769448826184,2.03297772,123.05,123.01,70.03231694]
[1769448826393,7.3199,123.07,123.01,70.03231694]
[1769448826882,7.3204,123.06,123.01,70.03231694]
[1769448827288,181.31371834,123.09,123.01,70.03231694]
[1769448827690,7.3201,123.07,123.01,70.03231694]
[1769448829297,7.3201,123.07,123.01,63.93264197]
[1769448831896,7.3204,123.06,123.01,63.93264197]
[1769448833198,7.3204,123.06,123.01,59.86563536]
[1769448834101,66.33085786,123.06,122.96,324.36]
[1769448834300,66.33085786,123.05,122.96,324.36]
[1769448834892,73.65245786,123.05,122.97,7.3257]
[1769448835098,66.33085786,123.05,122.97,7.3257]
[1769448835297,66.33085786,123.05,122.97,74.4726272]
[1769448835698,7.3216,123.04,122.98,74.4720272]
[1769448835897,73.65245786,123.04,122.98,7.3251]
[1769448836098,73.65245786,123.04,122.96,391.5069272]
[1769448836298,73.65245786,123.04,122.97,74.4721272]
[1769448836593,7.3216,123.04,122.97,74.4721272]
[1769448836793,7.321,123.06,122.99,67.1469272]
[1769448837301,66.33085786,123.06,122.99,67.1469272]
[1769448838101,7.321,123.05,122.99,67.1469272]
[1769448838299,2.03355355,123.04,122.99,67.1469272]
[1769448838499,2.03355355,123.03,122.99,67.1469272]
[1769448838703,66.33085786,123.06,122.99,67.1469272]
[1769448839502,7.3204,123.06,123.0,74.4708272]
[1769448839699,66.33085786,123.07,123.0,67.1469272]
[1769448840495,66.33085786,123.07,123.0,61.04657557]
[1769448840897,7.3212,123.05,123.0,61.04657557]
[1769448841999,7.3217,123.04,122.97,7.3253]
[1769448842408,7.3217,123.04,122.98,74.4721272]
[1769448842600,66.33085786,123.06,122.98,67.1469272]
[1769448843001,66.33085786,123.08,122.98,67.1469272]
[1769448843204,7.3204,123.07,123.01,7.3234]
[1769448843703,66.33085786,123.1,123.01,67.1469272]
[1769448843898,66.33085786,123.13,123.03,67.1469272]
[1769448845001,7.3171,123.12,123.05,74.4673272]
[1769448845707,73.64715786,123.13,123.06,74.4671272]
[1769448846111,312.91876487,123.14,123.06,67.1469272]
[1769448846309,7.3155,123.15,123.08,74.4660272]
[1769448847610,7.3155,123.15,123.05,119.43520767]
[1769448847611,7.3144,123.17,123.09,74.4655272]
[1769448847803,7.3144,123.17,123.09,67.1469272]
[1769448848005,66.33085786,123.19,123.09,67.1469272]
[1769448848805,66.33085786,123.19,123.11,7.3174]
[1769448849111,66.33085786,123.19,123.12,67.1469272]
[1769448849304,66.33085786,123.19,123.09,113.8431]
[1769448849510,66.33085786,123.18,123.1,7.3175]
[1769448849699,66.33085786,123.18,123.09,113.8447]
[1769448850613,2.03151393,123.17,123.09,113.8447]
[1769448850812,66.33085786,123.2,123.1,113.8339]
[1769448851312,66.33085786,123.2,123.11,67.1469272]
[1769448851512,73.64305786,123.2,123.13,74.4631272]
[1769448852205,7.3128,123.19,123.13,67.1469272]
[1769448853705,66.33085786,123.2,123.13,67.1469272]
[1769448855216,73.64155786,123.23,123.15,67.1469272]
[1769448855620,7.3098,123.24,123.16,74.4612272]
[1769448855811,73.64065786,123.24,123.16,74.4612272]
[1769448856211,66.33085786,123.24,123.17,74.4606272]
[1769448856411,7.3089,123.26,123.17,67.1469272]
[1769448856912,7.3089,123.26,123.19,7.3126]
[1769448857109,66.33085786,123.27,123.19,67.1469272]
[1769448857412,66.33085786,123.29,123.19,67.1469272]
[1769448858408,66.33085786,123.27,123.19,74.4592272]
[1769448858609,66.33085786,123.27,123.19,67.1469272]
[1769448858913,64.2183825,123.26,123.19,67.1469272]
[1769448860012,7.3098,123.24,123.19,67.1469272]
[1769448860218,177.8919825,123.28,123.19,67.1469272]
[1769448860411,64.2183825,123.27,123.19,67.1469272]
[1769448860805,177.9013825,123.27,123.19,67.1469272]
[1769448861012,64.2183825,123.26,123.17,69.62689234]
[1769448861415,7.3098,123.24,123.17,69.62689234]
[1769448862519,7.3104,123.23,123.17,69.62689234]
[1769448862915,64.2183825,123.24,123.14,76.94219234]
[1769448863221,64.2183825,123.22,123.14,69.62689234]
[1769448864016,7.3121,123.2,123.14,69.62689234]
[1769448864223,64.2183825,123.22,123.14,69.62689234]
[1769448864522,71.5297825,123.22,123.14,76.94229234]
[1769448865626,7.3101,123.24,123.16,69.62689234]
[1769448867118,7.3101,123.24,123.16,76.94129234]
[1769448868320,7.3101,123.24,123.18,69.62689234]
[1769448868717,177.8934825,123.28,123.18,69.62689234]
[1769448870019,7.3086,123.26,123.19,76.93949234]
[1769448870619,7.3079,123.27,123.2,76.93889234]
[1769448871125,7.3085,123.26,123.2,76.93889234]
[1769448871329,7.3085,123.26,123.2,69.62689234]
[1769448873027,64.2183825,123.26,123.2,69.62689234]
[1769448873215,64.2183825,123.26,123.16,69.62689234]
[1769448873418,69.77349017,123.25,123.16,69.62689234]
[1769448874021,7.3104,123.23,123.16,76.94089234]
[1769448874428,64.2183825,123.25,123.16,69.62689234]
[1769448874628,71.5280825,123.25,123.18,76.94019234]
[1769448875228,7.3098,123.24,123.18,76.94019234]
[1769448875533,7.3098,123.24,123.18,69.62689234]
[1769448875924,7.3103,123.23,123.18,69.62689234]
[1769448877132,71.5292825,123.22,123.16,69.62689234]
[1769448877429,71.5292825,123.22,123.09,113.8368]
[1769448877430,183.47439017,123.25,123.14,69.62689234]
[1769448877626,7.3109,123.22,123.16,69.62689234]
[1769448878220,64.2183825,123.24,123.16,76.94129234]
[1769448879934,7.3103,123.23,123.16,76.94129234]
[1769448880232,7.3103,123.23,123.17,76.94069234]
[1769448881634,7.3103,123.23,123.17,69.62689234]
[1769448882534,7.3109,123.22,123.17,69.62689234]
[1769448886429,7.3103,123.23,123.17,69.62689234]
[1769448887537,9.72733346,123.23,123.17,69.62689234]
[1769448889134,2.41703346,123.28,123.21,69.39715518]
[1769448889337,71.65538153,123.29,123.22,71.81418864]
[1769448889536,71.65538153,123.29,123.22,69.39715518]
[1769448889731,7.3079,123.28,123.22,69.39715518]
[1769448889936,9.72493346,123.28,123.22,69.39715518]
[1769448890537,7.3079,123.28,123.22,69.39715518]
[1769448891230,7.3068,123.29,123.22,79.12498864]
[1769448891432,69.23834807,123.32,123.24,69.39715518]